bitfinex/quotes_BTCUSD_20240627
["timestamp","ask_amount","ask_price","bid_price","bid_amount"]
[1719462339455,0.0954,61221.0,61220.0,0.2299]
[1719462341260,0.10897578,61221.0,61220.0,0.2299]
[1719462342211,0.01357578,61221.0,61220.0,0.2299]
[1719462342412,0.10897578,61221.0,61220.0,0.2299]
[1719462343622,0.0954,61221.0,61220.0,0.2299]
[1719462343821,0.10897578,61221.0,61220.0,0.2299]
[1719462345958,0.01357578,61221.0,61220.0,0.232324]
[1719462346160,0.10897578,61221.0,61220.0,0.395669]
[1719462346430,0.10897578,61221.0,61220.0,0.393245]
[1719462346714,0.10897578,61221.0,61220.0,0.2299]
[1719462347899,0.10897578,61221.0,61220.0,0.393245]
[1719462348113,0.10897578,61221.0,61220.0,0.395669]
[1719462348114,0.0954,61221.0,61220.0,0.395669]
[1719462349997,0.00084,61222.0,61221.0,0.699051]
[1719462350249,0.00084,61222.0,61221.0,0.88138998]
[1719462350456,0.00084,61222.0,61221.0,2.06144498]
[1719462350663,0.00084,61222.0,61221.0,2.15684498]
[1719462350879,0.00084,61222.0,61221.0,2.35684498]
[1719462351094,0.09624,61238.0,61237.0,1.031721]
[1719462351301,0.09624,61238.0,61237.0,1.19405998]
[1719462353210,0.00084,61238.0,61237.0,1.21205998]
[1719462354614,0.00084,61238.0,61237.0,1.23205998]
[1719462354772,0.00084,61238.0,61237.0,1.55865898]
[1719462355587,0.00084,61238.0,61237.0,1.54065898]
[1719462356018,0.00084,61238.0,61237.0,1.56165898]
[1719462356392,0.00084,61238.0,61237.0,1.54065898]
[1719462356616,0.00084,61238.0,61237.0,1.55465898]
[1719462356826,0.00084,61238.0,61237.0,1.56865898]
[1719462359136,0.00084,61238.0,61237.0,1.55465898]
[1719462359356,0.00084,61238.0,61237.0,1.54065898]
[1719462359555,0.00084,61238.0,61237.0,1.53465898]
[1719462359775,0.00084,61238.0,61237.0,1.54865898]
[1719462359950,0.00084,61238.0,61237.0,1.52065898]
[1719462360337,0.00084,61238.0,61237.0,1.53465898]
[1719462360554,0.00084,61238.0,61237.0,1.52065898]
[1719462360757,0.00084,61238.0,61237.0,1.54065898]
[1719462360992,0.00084,61238.0,61237.0,1.55465898]
[1719462361533,0.00084,61238.0,61237.0,1.56865898]
[1719462361890,0.00084,61238.0,61237.0,1.55465898]
[1719462362265,0.00084,61238.0,61237.0,1.54865898]
[1719462362766,0.00084,61238.0,61237.0,1.53465898]
[1719462362965,0.00084,61238.0,61237.0,1.55465898]
[1719462363318,0.00084,61238.0,61237.0,1.52065898]
[1719462363719,0.00084,61238.0,61237.0,1.55465898]
[1719462364156,0.00084,61238.0,61237.0,1.56865898]
[1719462364358,0.00084,61238.0,61237.0,1.55465898]
[1719462364690,0.00084,61238.0,61237.0,1.56865898]
[1719462365095,0.00084,61238.0,61237.0,1.55465898]
[1719462365301,0.00084,61238.0,61237.0,1.56865898]
[1719462365909,0.00084,61238.0,61237.0,1.51965898]
[1719462366112,0.00084,61238.0,61237.0,1.53365898]
[1719462366564,0.00084,61238.0,61237.0,1.51965898]
[1719462366860,0.00084,61238.0,61237.0,1.53365898]
[1719462371346,0.00084,61238.0,61237.0,1.51965898]
[1719462371541,0.00084,61238.0,61237.0,0.84646098]
[1719462371772,0.00084,61238.0,61237.0,0.86046098]
[1719462372206,0.00084,61238.0,61237.0,1.18705998]
[1719462372408,0.00084,61238.0,61237.0,1.17305998]
[1719462372678,0.00084,61238.0,61237.0,1.15905998]
[1719462372899,0.00084,61238.0,61237.0,1.17305998]
[1719462373131,0.00084,61238.0,61237.0,1.18705998]
[1719462373378,0.00084,61238.0,61237.0,1.17305998]
[1719462373610,0.00084,61238.0,61237.0,1.18705998]
[1719462374745,0.00084,61238.0,61237.0,1.17305998]
[1719462375182,0.00084,61238.0,61237.0,1.18705998]
[1719462375888,0.00084,61238.0,61237.0,1.17305998]
[1719462376136,0.2860035,61244.0,61243.0,0.163283]
[1719462376137,0.05809648,61244.0,61243.0,0.163283]
[1719462376386,0.05809648,61244.0,61243.0,0.32562198]
[1719462376387,0.0954,61244.0,61243.0,0.32562198]
[1719462377376,0.0954,61244.0,61243.0,0.33662198]
[1719462378404,0.0954,61244.0,61243.0,0.34762198]
[1719462382299,0.1069,61246.0,61244.0,0.163281]
[1719462382561,0.0954,61245.0,61244.0,0.32561998]
[1719462383540,0.0954,61245.0,61244.0,0.008]
[1719462383756,0.0954,61245.0,61243.0,0.011]
[1719462384254,0.0954,61245.0,61244.0,0.009]
[1719462385255,0.0954,61245.0,61244.0,0.017]
[1719462385749,0.0954,61245.0,61244.0,0.009]
[1719462387197,0.0954,61245.0,61244.0,0.018]
[1719462387693,0.270176,61246.0,61244.0,0.018]
[1719462387923,0.0954,61245.0,61244.0,0.018]
[1719462388798,0.0954,61245.0,61244.0,0.009]
[1719462389045,0.0954,61245.0,61244.0,0.017]
[1719462389518,0.0954,61245.0,61244.0,0.009]
[1719462390003,0.0954,61245.0,61244.0,0.018]
[1719462400228,1.019092,61245.0,61244.0,0.018]
[1719462400459,0.74160497,61245.0,61244.0,0.018]
[1719462400698,0.76160497,61245.0,61244.0,0.018]
[1719462400930,0.76160622,61245.0,61244.0,0.018]
[1719462401697,0.76160622,61245.0,61244.0,0.009]
[1719462402172,0.76160622,61245.0,61244.0,0.004]
[1719462402384,1.08816322,61245.0,61244.0,0.004]
[1719462402650,1.08816322,61245.0,61244.0,0.008]
[1719462403383,1.25034486,61245.0,61244.0,0.008]
[1719462404124,1.72401335,61245.0,61244.0,0.008]
[1719462404355,1.57690186,61245.0,61244.0,0.008]
[1719462404823,1.57690186,61245.0,61244.0,0.004]
[1719462405286,1.57890186,61245.0,61244.0,0.005]
[1719462405766,1.57690186,61245.0,61244.0,0.004]
[1719462405991,0.01,61239.0,61228.0,0.279121]
[1719462406276,0.163306,61235.0,61229.0,0.16233898]
[1719462406541,0.0954,61230.0,61229.0,0.16233898]
[1719462406743,0.0954,61230.0,61229.0,0.32565998]
[1719462407757,0.163306,61235.0,61229.0,0.32565998]
[1719462407758,0.163306,61235.0,61230.0,0.0919]
[1719462408019,0.0954,61231.0,61230.0,0.374618]
[1719462409047,0.0954,61231.0,61230.0,0.380618]
[1719462410076,0.0954,61231.0,61230.0,0.384618]
[1719462410324,0.0954,61231.0,61230.0,0.380618]
[1719462410548,0.0954,61231.0,61230.0,0.374618]
[1719462410768,0.0954,61231.0,61230.0,0.400618]
[1719462411926,0.0954,61231.0,61230.0,0.56295698]
[1719462415404,0.0954,61231.0,61230.0,0.88959398]
[1719462420731,0.0954,61231.0,61230.0,0.89051798]
[1719462421718,0.0954,61231.0,61230.0,1.21585498]
[1719462423657,0.27059,61241.0,61235.0,0.163304]
[1719462423900,0.0954,61236.0,61235.0,0.374104]
[1719462424844,0.0954,61236.0,61235.0,0.375104]
[1719462425527,0.0954,61236.0,61235.0,0.374104]
[1719462425785,0.0954,61236.0,61235.0,0.381104]
[1719462426306,0.30341849,61241.0,61235.0,0.381104]
[1719462426573,0.0954,61236.0,61235.0,0.388104]
[1719462427319,0.0954,61236.0,61235.0,0.381104]
[1719462428069,0.0954,61236.0,61235.0,0.2108]
[1719462428581,0.0954,61236.0,61235.0,0.2118]
[1719462428848,0.44985418,61245.0,61240.0,0.2094]
[1719462428849,0.00084,61245.0,61240.0,0.2094]
[1719462429084,0.00084,61245.0,61244.0,0.08130346]
[1719462429399,0.00084,61245.0,61244.0,0.37173898]
[1719462430077,0.00184,61245.0,61244.0,0.37173898]
[1719462430554,0.00084,61245.0,61244.0,0.37173898]
[1719462430791,0.00084,61245.0,61244.0,0.38573898]
[1719462431200,0.09624,61245.0,61244.0,0.38573898]
[1719462431686,0.09624,61245.0,61244.0,0.39973898]
[1719462437373,0.00084,61245.0,61244.0,0.39973898]
[1719462449300,0.07848435,61250.0,61244.0,0.39973898]
[1719462449501,0.258669,61249.0,61245.0,0.16233898]
[1719462450891,0.258669,61249.0,61245.0,0.17333898]
[1719462451499,0.258669,61249.0,61245.0,0.18433898]
[1719462452346,0.258669,61249.0,61245.0,0.022]
[1719462452347,0.1154,61249.0,61245.0,0.022]
[1719462452551,0.585226,61246.0,61245.0,0.022]
[1719462452762,0.663626,61246.0,61245.0,0.022]
[1719462453006,1.026177,61246.0,61245.0,0.022]
[1719462453340,1.026177,61246.0,61245.0,0.011]
[1719462453710,1.026177,61246.0,61235.0,0.2147]
[1719462453711,0.163289,61242.0,61235.0,0.2147]
[1719462453841,0.0954,61238.0,61236.0,0.16233898]
[1719462455297,0.0954,61238.0,61236.0,0.17633898]
[1719462455833,0.0954,61238.0,61236.0,0.014]
[1719462455834,0.816497,61237.0,61236.0,0.014]
[1719462456037,0.894897,61237.0,61236.0,0.014]
[1719462456442,0.894897,61237.0,61236.0,0.028]
[1719462456822,0.163307,61234.0,61230.0,0.000924]
[1719462457022,0.258707,61234.0,61233.0,0.62933898]
[1719462457663,0.258707,61234.0,61233.0,0.16233898]
[1719462458176,0.258707,61234.0,61233.0,0.16633898]
[1719462458602,0.258707,61234.0,61233.0,0.16233898]
[1719462459229,0.258707,61234.0,61233.0,0.16633898]
[1719462459717,0.258707,61234.0,61233.0,0.16233898]
[1719462460085,0.258707,61234.0,61233.0,0.17433898]
[1719462460469,0.258707,61234.0,61233.0,0.16833898]
[1719462460851,0.260707,61234.0,61233.0,0.16833898]
[1719462461051,0.587322,61234.0,61233.0,0.16833898]
[1719462461759,0.587322,61234.0,61233.0,0.16233898]
[1719462462273,0.585322,61234.0,61233.0,0.16233898]
[1719462462609,0.585322,61234.0,61233.0,0.16833898]
[1719462463190,0.585322,61234.0,61233.0,0.16233898]
[1719462463511,0.585322,61234.0,61233.0,0.16533898]
[1719462464480,0.585322,61234.0,61233.0,0.16833898]
[1719462464858,0.585322,61234.0,61233.0,0.16533898]
[1719462465274,0.585322,61234.0,61233.0,0.16233898]
[1719462465503,0.489922,61234.0,61233.0,0.16233898]
[1719462465697,0.587322,61234.0,61233.0,0.16633898]
[1719462465901,0.002,61234.0,61233.0,0.38653898]
[1719462466105,0.0954,61239.0,61233.0,0.38653898]
[1719462466403,0.0954,61239.0,61235.0,0.1213]
[1719462466602,0.0954,61239.0,61236.0,0.16233898]
[1719462466980,0.0954,61237.0,61236.0,0.16233898]
[1719462470562,0.0954,61237.0,61236.0,0.16333898]
[1719462470988,0.0954,61237.0,61236.0,0.16233898]
[1719462471500,0.0954,61237.0,61236.0,0.16833898]
[1719462471833,0.0954,61237.0,61236.0,0.17433898]
[1719462472680,0.19439023,61243.0,61236.0,0.17433898]
[1719462473042,0.19439023,61243.0,61237.0,0.091]
[1719462473043,0.0954,61239.0,61237.0,0.091]
[1719462473244,0.0954,61239.0,61238.0,0.16233898]
[1719462474825,0.0954,61239.0,61238.0,0.28233898]
[1719462475354,0.0954,61239.0,61238.0,0.28533898]
[1719462475753,0.0954,61239.0,61238.0,0.28233898]
[1719462476083,0.0954,61239.0,61238.0,0.28533898]
[1719462476685,0.0954,61239.0,61238.0,0.28233898]
[1719462477050,0.0954,61239.0,61238.0,0.28633898]
[1719462477662,0.0954,61239.0,61238.0,0.29033898]
[1719462481573,0.0954,61239.0,61238.0,0.38433898]
[1719462481927,0.0954,61239.0,61238.0,0.38033898]
[1719462482379,0.0954,61239.0,61238.0,0.38333898]
[1719462482607,0.0954,61239.0,61238.0,0.38033898]
[1719462483858,0.0954,61239.0,61238.0,0.38333898]
[1719462484363,0.0954,61239.0,61238.0,0.38033898]
[1719462484515,0.0954,61239.0,61238.0,0.37633898]
[1719462484920,0.0954,61239.0,61238.0,0.38233898]
[1719462486208,0.0954,61242.0,61238.0,0.38833898]
[1719462487114,0.0954,61242.0,61238.0,0.38233898]
[1719462487314,0.0954,61242.0,61238.0,0.38433898]
[1719462487536,0.1182,61241.0,61238.0,0.17033898]
[1719462487900,0.1182,61241.0,61238.0,0.002]
[1719462487901,1.376661,61239.0,61238.0,0.002]
[1719462488096,1.376661,61239.0,61238.0,0.004]
[1719462488097,1.37023179,61239.0,61238.0,0.004]
[1719462488237,1.06364279,61239.0,61238.0,0.004]
[1719462488442,1.06364279,61239.0,61238.0,0.002]
[1719462488670,1.06364279,61239.0,61238.0,0.005]
[1719462489066,1.04364279,61239.0,61238.0,0.002]
[1719462489290,0.163313,61232.0,61230.0,0.000924]
[1719462489627,0.163313,61232.0,61231.0,0.16233898]
[1719462489871,0.258713,61232.0,61231.0,0.16233898]
[1719462491607,0.258713,61232.0,61231.0,0.16433898]
[1719462492017,0.258713,61232.0,61231.0,0.16233898]
[1719462492639,1.163208,61231.0,61230.0,0.000924]
[1719462492857,0.490018,61222.0,61221.0,0.000924]
[1719462493239,0.585418,61222.0,61221.0,0.000924]
[1719462495340,0.586418,61222.0,61221.0,0.000924]
[1719462495535,0.585418,61222.0,61221.0,0.000924]
[1719462495849,0.587418,61222.0,61221.0,0.000924]
[1719462495991,0.589418,61222.0,61221.0,0.000924]
[1719462496203,0.587418,61222.0,61221.0,0.000924]
[1719462496453,0.0954,61222.0,61221.0,0.000924]
[1719462497229,0.0954,61222.0,61221.0,0.119824]
[1719462497651,0.0964,61222.0,61221.0,0.119824]
[1719462497835,0.0954,61222.0,61221.0,0.119824]
[1719462498235,0.0954,61222.0,61221.0,0.121824]
[1719462498578,0.163338,61223.0,61221.0,0.121824]
[1719462498776,0.0954,61222.0,61221.0,0.121824]
[1719462499362,0.163338,61223.0,61221.0,0.123824]
[1719462499569,0.0954,61222.0,61221.0,0.121824]
[1719462500480,0.0954,61222.0,61221.0,0.119824]
[1719462500694,0.0954,61222.0,61221.0,0.120824]
[1719462501707,0.0954,61222.0,61221.0,0.122824]
[1719462502083,0.0954,61222.0,61221.0,0.121824]
[1719462502284,0.2847621,61225.0,61221.0,0.121824]
[1719462502482,0.0954,61222.0,61221.0,0.123824]
[1719462503264,0.0954,61222.0,61221.0,0.121824]
[1719462504176,0.0954,61222.0,61221.0,0.119824]
[1719462504597,0.0964,61222.0,61221.0,0.000924]
[1719462505033,0.259739,61222.0,61221.0,0.000924]
[1719462505447,0.258739,61222.0,61221.0,0.000924]
[1719462505855,0.258739,61222.0,61221.0,0.004924]
[1719462505856,0.294339,61222.0,61221.0,0.004924]
[1719462506009,0.294339,61222.0,61221.0,0.002924]
[1719462506217,0.621018,61222.0,61221.0,0.000924]
[1719462507692,0.622018,61222.0,61221.0,0.000924]
[1719462507822,0.621018,61222.0,61221.0,0.000924]
[1719462508229,0.624018,61222.0,61221.0,0.000924]
[1719462508716,1.047997,61222.0,61221.0,0.000924]
[1719462508916,1.049997,61222.0,61221.0,0.000924]
[1719462509700,1.376676,61222.0,61221.0,0.000924]
[1719462512488,1.10778897,61222.0,61221.0,0.000924]
[1719462512835,1.20318897,61222.0,61221.0,0.000924]
[1719462513247,1.32670568,61222.0,61221.0,0.000924]
[1719462513647,1.36652797,61222.0,61221.0,0.000924]
[1719462515273,1.38080847,61222.0,61221.0,0.000924]
[1719462515671,1.58080847,61222.0,61221.0,0.000924]
[1719462515934,1.363432,61219.0,61218.0,0.000924]
[1719462516134,1.6818125,61219.0,61218.0,0.000924]
[1719462516336,0.945557,61210.0,61209.0,0.000924]
[1719462516534,1.040957,61210.0,61209.0,0.000924]
[1719462517873,1.3677,61210.0,61209.0,0.000924]
[1719462518203,1.3707,61210.0,61209.0,0.001924]
[1719462519908,1.3767,61210.0,61209.0,0.002924]
[1719462520328,1.268,61210.0,61209.0,0.002924]
[1719462524427,1.3330236,61210.0,61209.0,0.002924]
[1719462524652,1.268,61210.0,61209.0,0.002924]
[1719462526616,1.1526,61210.0,61209.0,0.002924]
[1719462526833,1.268,61210.0,61209.0,0.002924]
[1719462530155,1.2977602,61210.0,61209.0,0.002924]
[1719462533003,1.2972652,61210.0,61209.0,0.002924]
[1719462536096,1.45959891,61210.0,61209.0,0.002924]
[1719462537378,1.47411157,61210.0,61209.0,0.002924]
[1719462537582,1.45959891,61210.0,61209.0,0.002924]
[1719462537830,1.47411291,61210.0,61209.0,0.002924]
[1719462539887,1.3117792,61210.0,61209.0,0.002924]
[1719462540660,1.2772652,61210.0,61209.0,0.002924]
[1719462540852,1.31206325,61210.0,61209.0,0.002924]
[1719462541225,1.31206453,61210.0,61209.0,0.002924]
[1719462541762,1.21666453,61210.0,61209.0,0.002924]
[1719462541938,1.31206453,61210.0,61209.0,0.002924]
[1719462543354,1.2972652,61210.0,61209.0,0.002924]
[1719462543551,1.31231199,61210.0,61209.0,0.002924]
[1719462544310,1.33552318,61210.0,61209.0,0.002924]
[1719462544725,0.87016899,61210.0,61209.0,0.002924]
[1719462545288,0.96556899,61210.0,61209.0,0.002924]
[1719462545624,0.87016899,61210.0,61209.0,0.002924]
[1719462545892,0.96556899,61210.0,61209.0,0.002924]
[1719462546430,0.9505222,61210.0,61209.0,0.002924]
[1719462546618,0.96542752,61210.0,61209.0,0.002924]
[1719462547467,0.98542752,61210.0,61209.0,0.002924]
[1719462548052,0.21654152,61210.0,61209.0,0.002924]
[1719462548251,0.0387602,61210.0,61209.0,0.214924]
[1719462548663,0.1341602,61210.0,61209.0,0.214924]
[1719462548870,0.32673,61213.0,61210.0,0.212]
[1719462548996,0.0954,61210.0,61209.0,0.000924]
[1719462549413,0.1084,61210.0,61209.0,0.214924]
[1719462549639,0.1084,61210.0,61209.0,0.213924]
[1719462549871,0.1024,61210.0,61209.0,0.212924]
[1719462550017,0.007,61210.0,61209.0,0.213924]
[1719462550210,0.1024,61210.0,61209.0,0.213924]
[1719462552529,0.592514,61210.0,61209.0,0.214924]
[1719462553578,0.592514,61210.0,61209.0,0.213924]
[1719462554694,0.592514,61210.0,61209.0,0.212924]
[1719462554695,0.585514,61210.0,61209.0,0.212924]
[1719462555824,0.586514,61210.0,61209.0,0.212924]
[1719462556008,0.585514,61210.0,61209.0,0.212924]
[1719462556425,0.588514,61210.0,61209.0,0.212924]
[1719462556739,0.585514,61210.0,61209.0,0.212924]
[1719462557508,0.585514,61210.0,61209.0,0.213924]
[1719462560171,0.585514,61210.0,61209.0,0.212924]
[1719462564751,0.490114,61210.0,61209.0,0.212924]
[1719462564953,0.258771,61210.0,61209.0,0.212924]
[1719462566215,0.258771,61210.0,61209.0,0.213924]
[1719462566596,0.258771,61210.0,61209.0,0.212924]
[1719462567155,0.258771,61210.0,61209.0,0.213924]
[1719462569032,0.258771,61210.0,61209.0,0.214924]
[1719462570361,0.163371,61210.0,61209.0,0.214924]
[1719462570777,0.258771,61210.0,61209.0,0.214924]
[1719462571313,0.163368,61212.0,61211.0,0.0964]
[1719462571519,0.258768,61212.0,61211.0,0.0964]
[1719462571726,0.258768,61212.0,61211.0,0.2173]
[1719462572166,0.163368,61212.0,61211.0,0.2173]
[1719462572419,0.35769266,61214.0,61211.0,0.16233898]
[1719462572420,0.03096866,61214.0,61211.0,0.16233898]
[1719462572621,0.12258743,61220.0,61218.0,0.0975]
[1719462572824,0.03727879,61219.0,61218.0,0.37523898]
[1719462573028,0.0954,61221.0,61219.0,0.0975]
[1719462573278,0.163337,61223.0,61220.0,0.1154]
[1719462573500,0.0954,61221.0,61220.0,0.1154]
[1719462575936,0.258742,61221.0,61220.0,0.1154]
[1719462581598,0.262742,61221.0,61220.0,0.1154]
[1719462585084,0.263582,61221.0,61220.0,0.1154]
[1719462589376,0.259582,61221.0,61220.0,0.1154]
[1719462591181,0.262582,61221.0,61220.0,0.1154]
[1719462591595,0.259582,61221.0,61220.0,0.1154]
[1719462592016,0.260582,61221.0,61220.0,0.1154]
[1719462596636,0.165182,61221.0,61220.0,0.1154]
[1719462596802,0.260582,61221.0,61220.0,0.1154]
[1719462597618,0.259582,61221.0,61220.0,0.1154]
[1719462599235,0.586267,61221.0,61220.0,0.1154]
[1719462599940,0.490867,61221.0,61220.0,0.1154]
[1719462600157,0.00084,61221.0,61220.0,0.27773898]
[1719462600519,0.00084,61221.0,61220.0,0.39363898]
[1719462600912,0.00084,61221.0,61220.0,0.47494244]
[1719462601214,0.00084,61221.0,61220.0,0.45494244]
[1719462601838,0.00084,61221.0,61220.0,0.37363898]
[1719462602497,0.00084,61221.0,61220.0,0.38763898]
[1719462602704,0.00084,61221.0,61220.0,0.40163898]
[1719462602915,0.163333,61225.0,61220.0,0.40163898]
[1719462603135,0.258733,61225.0,61221.0,0.16233898]
[1719462603809,0.0954,61225.0,61221.0,0.16233898]
[1719462605638,0.0954,61225.0,61221.0,0.16733898]
[1719462607219,0.163329,61226.0,61221.0,0.16733898]
[1719462607419,0.0954,61225.0,61221.0,0.16733898]
[1719462608202,0.163329,61226.0,61221.0,0.16433898]
[1719462608526,0.163329,61226.0,61221.0,0.16533898]
[1719462609145,0.163329,61226.0,61221.0,0.16433898]
[1719462609338,0.163329,61226.0,61221.0,0.16733898]
[1719462609543,0.163329,61226.0,61221.0,0.16533898]
[1719462609848,0.163329,61226.0,61221.0,0.16233898]
[1719462610253,0.163329,61226.0,61221.0,0.16333898]
[1719462611464,0.163329,61226.0,61221.0,0.16433898]
[1719462611663,0.258729,61226.0,61221.0,0.16433898]
[1719462614627,0.163329,61226.0,61221.0,0.16433898]
[1719462617440,0.163319,61230.0,61224.0,0.1154]
[1719462617653,0.03793281,61232.0,61227.0,0.0932]
[1719462617867,0.03793281,61232.0,61229.0,0.2077]
[1719462618074,0.03793281,61232.0,61221.0,0.17962746]
[1719462618075,0.326596,61238.0,61232.0,0.1145]
[1719462618281,0.326596,61238.0,61233.0,0.16233898]
[1719462618282,0.163297,61238.0,61233.0,0.16233898]
[1719462618495,0.163297,61238.0,61234.0,0.2077]
[1719462618736,0.258697,61238.0,61235.0,0.16233898]
[1719462618958,0.2971454,61238.0,61235.0,0.16233898]
[1719462619180,0.1633,61237.0,61235.0,0.16233898]
[1719462619383,0.258702,61236.0,61235.0,0.16233898]
[1719462620202,0.258702,61236.0,61235.0,0.16333898]
[1719462622242,0.258702,61236.0,61235.0,0.16233898]
[1719462622456,0.262702,61236.0,61235.0,0.16233898]
[1719462625603,0.589307,61236.0,61235.0,0.16233898]
[1719462627472,0.163319,61230.0,61226.0,0.0924]
[1719462627674,0.163319,61230.0,61227.0,0.16233898]
[1719462627877,0.163319,61230.0,61228.0,0.1141]
[1719462628082,0.163319,61230.0,61229.0,0.16233898]
[1719462628922,0.163316,61231.0,61229.0,0.25143898]
[1719462629674,0.163316,61231.0,61229.0,0.25443898]
[1719462629911,0.422018,61234.0,61229.0,0.25443898]
[1719462629912,0.163313,61232.0,61230.0,0.1164]
[1719462630253,0.163313,61232.0,61231.0,0.16233898]
[1719462630456,0.489939,61232.0,61231.0,0.16233898]
[1719462631220,0.02,61230.0,61222.0,0.2168]
[1719462631434,0.163336,61224.0,61223.0,0.16233898]
[1719462631651,0.163339,61222.0,61221.0,0.000924]
[1719462631868,0.163339,61222.0,61221.0,0.16326298]
[1719462631869,0.490018,61222.0,61221.0,0.16326298]
[1719462634281,0.163339,61222.0,61221.0,0.16426298]
[1719462634874,0.163339,61222.0,61221.0,0.16526298]
[1719462638351,0.0954,61225.0,61222.0,0.2094]
[1719462638549,0.163325,61228.0,61224.0,0.1167]
[1719462638728,0.0954,61228.0,61226.0,0.0927]
[1719462638957,0.0954,61228.0,61227.0,0.16233898]
[1719462639200,0.163322,61229.0,61227.0,0.16233898]
[1719462639413,0.0954,61228.0,61227.0,0.16233898]
[1719462640562,0.0994,61228.0,61227.0,0.16233898]
[1719462640912,0.258723,61228.0,61227.0,0.16233898]
[1719462641114,0.58537,61228.0,61227.0,0.16233898]
[1719462641369,0.58937,61228.0,61227.0,0.16333898]
[1719462641576,0.58937,61228.0,61227.0,0.16233898]
[1719462641577,0.58537,61228.0,61227.0,0.16233898]
[1719462642851,0.422047,61228.0,61221.0,0.000924]
[1719462642992,0.422047,61228.0,61221.0,0.212524]
[1719462642993,0.490018,61222.0,61221.0,0.212524]
[1719462644400,0.163339,61222.0,61221.0,0.212524]
[1719462644735,0.163339,61222.0,61221.0,0.220524]
[1719462645323,0.163339,61222.0,61221.0,0.228524]
[1719462647775,0.326643,61229.0,61221.0,0.39086298]
[1719462647958,0.0954,61225.0,61222.0,0.16233898]
[1719462648172,0.163324,61228.0,61223.0,0.0974]
[1719462648377,0.0954,61227.0,61224.0,0.16233898]
[1719462648733,0.163324,61228.0,61225.0,0.1192]
[1719462648911,0.163324,61228.0,61227.0,0.0969]
[1719462649077,0.163324,61228.0,61227.0,0.25923898]
[1719462649078,0.258724,61228.0,61227.0,0.25923898]
[1719462652228,0.258724,61228.0,61227.0,0.26016298]
[1719462652430,0.258724,61228.0,61227.0,0.16326298]
[1719462657625,0.585371,61228.0,61227.0,0.16326298]
[1719462658043,0.932018,61228.0,61227.0,0.000924]
[1719462659280,0.94941614,61228.0,61227.0,0.000924]
[1719462660638,0.932018,61228.0,61227.0,0.000924]
[1719462660836,0.94940854,61228.0,61227.0,0.000924]
[1719462662485,0.92940854,61228.0,61227.0,0.000924]
[1719462662717,0.94940854,61228.0,61227.0,0.000924]
[1719462663005,0.93340854,61228.0,61227.0,0.000924]
[1719462663412,0.936018,61228.0,61227.0,0.000924]
[1719462663664,0.93342621,61228.0,61227.0,0.000924]
[1719462663872,0.916018,61228.0,61227.0,0.000924]
[1719462664094,0.9334262,61228.0,61227.0,0.000924]
[1719462664778,0.9534262,61228.0,61227.0,0.000924]
[1719462666118,0.6593711,61228.0,61227.0,0.000924]
[1719462666318,0.7547711,61228.0,61227.0,0.000924]
[1719462666693,0.91807632,61228.0,61227.0,0.000924]
[1719462667106,0.89807632,61228.0,61227.0,0.000924]
[1719462669904,0.8806869,61228.0,61227.0,0.000924]
[1719462670108,0.89813389,61228.0,61227.0,0.000924]
[1719462670692,0.80273389,61228.0,61227.0,0.000924]
[1719462670902,0.004,61228.0,61227.0,0.195324]
[1719462671100,0.167323,61228.0,61227.0,0.195324]
[1719462672966,0.48997,61228.0,61227.0,0.195324]
[1719462673169,0.48997,61228.0,61227.0,0.000924]
[1719462673170,0.49397,61228.0,61227.0,0.000924]
[1719462673703,0.48997,61228.0,61227.0,0.000924]
[1719462673950,0.48997,61228.0,61227.0,0.002924]
[1719462674185,0.48997,61228.0,61227.0,0.000924]
[1719462674645,0.49197,61228.0,61227.0,0.003924]
[1719462675136,0.49197,61228.0,61227.0,0.000924]
[1719462677466,0.50945246,61228.0,61227.0,0.000924]
[1719462677706,0.49197,61228.0,61227.0,0.000924]
[1719462682621,0.838617,61228.0,61227.0,0.000924]
[1719462682861,0.85617519,61228.0,61227.0,0.000924]
[1719462683107,0.97883088,61228.0,61227.0,0.000924]
[1719462683338,0.97907102,61228.0,61227.0,0.000924]
[1719462685959,0.97907078,61228.0,61227.0,0.000924]
[1719462687458,0.85640967,61228.0,61227.0,0.000924]
[1719462687665,1.18305667,61228.0,61227.0,0.000924]
[1719462689163,1.18301727,61228.0,61227.0,0.000924]
[1719462689801,1.30567983,61228.0,61227.0,0.000924]
[1719462692480,1.30549346,61228.0,61227.0,0.000924]
[1719462692863,0.65219979,61228.0,61227.0,0.000924]
[1719462695571,0.63463077,61228.0,61227.0,0.000924]
[1719462695773,0.65740715,61228.0,61227.0,0.000924]
[1719462698834,0.65741445,61228.0,61227.0,0.000924]
[1719462699031,0.8563346,61228.0,61227.0,0.000924]
[1719462699257,0.73367483,61228.0,61227.0,0.000924]
[1719462705087,0.71089015,61228.0,61227.0,0.000924]
[1719462705256,0.73339452,61228.0,61227.0,0.000924]
[1719462706376,0.71429452,61228.0,61227.0,0.000924]
[1719462706588,0.65229452,61228.0,61227.0,0.000924]
[1719462709156,0.65229822,61228.0,61227.0,0.000924]
[1719462710714,0.65208386,61228.0,61227.0,0.000924]
[1719462711320,0.53404935,61228.0,61227.0,0.000924]
[1719462711686,0.51154128,61228.0,61227.0,0.000924]
[1719462711882,0.53406366,61228.0,61227.0,0.000924]
[1719462712081,0.53406367,61228.0,61227.0,0.000924]
[1719462712606,0.65668644,61228.0,61227.0,0.000924]
[1719462714580,0.53406367,61228.0,61227.0,0.000924]
[1719462714814,0.53384931,61228.0,61227.0,0.000924]
[1719462715029,0.65635199,61228.0,61227.0,0.000924]
[1719462715611,0.69606388,61228.0,61227.0,0.000924]
[1719462716609,0.53373017,61228.0,61227.0,0.000924]
[1719462718023,0.60913017,61228.0,61227.0,0.208724]
[1719462718229,0.51383546,61228.0,61227.0,0.208724]
[1719462718431,0.60923546,61228.0,61227.0,0.208724]